Workbook

Sheet Sheet1
D1: Длина диполя, в метрах | H1: Коэффициент укорочения
E2: 30.48 | I2: 0.9
D3: (Ctrl-d) | F3: (Ctrl-i)
A8: =B50 -> 11м
A10: =B49 -> 12м
A12: =B48 -> 14м
A14: =B47 -> 16м
A16: =B46 -> 21м
A18: =B45 -> 30м
A20: =B44 -> 42м
A22: =B43 -> 80м
B28: Примечание: Длина линии 46 метров, указывает на то, что диполь слишком короткий для данного диапазона
F30: Предварительные расчеты
A31: Частота | B31: Минимальная | C31: Расчитываемый | D31: Длина волны, м | E31: Len/WL | F31: Fraction | G31: Nrmlz | H31: FeedlnWL | I31: Длина волны с учетом КУ, м | J31: LLWL/2 | K31: Section1 | L31: 300xVF
A32: МГц | B32: Длина диполя, м | C32: диполь, м
A33: 3.75 | B33: =J33/1.2 -> 30 | C33: =$E$2+7.3152/A33 -> 32.43072 | D33: =300/A33 -> 80 | E33: =C33/D33 -> 0.405384 | F33: =E33-INT(E33) -> 0.405384 | G33: =IF(F33<0.5, F33+1, F33) -> 1.405384 | H33: =0.25-(TAN(2.5*(G33-1)))/12.02 -> 0.1165136983 | I33: =L33/A33 -> 72 | J33: =I33/2 -> 36 | K33: =H33*I33 -> 8.388986281 | L33: =300*I2 -> 270 | N33: 99 | O33: =N33*0.3048 -> 30.1752 | P33: =D33/O33 -> 2.651183754 | R33: =24/A33 -> 6.4 | S33: 106.4 | T33: =S33*0.3048 -> 32.43072 | U33: =T33/D33 -> 0.405384
A34: 7.15 | B34: =J34/1.2 -> 15.73426573 | C34: =$E$2+7.3152/A34 -> 31.5031049 | D34: =300/A34 -> 41.95804196 | E34: =C34/D34 -> 0.750824 | F34: =E34-INT(E34) -> 0.750824 | G34: =IF(F34<0.5, F34+1, F34) -> 0.750824 | H34: =0.25-(TAN(2.5*(G34-1)))/12.02 -> 0.3097634587 | I34: =L33/A34 -> 37.76223776 | J34: =I34/2 -> 18.88111888 | K34: =H34*I34 -> 11.69736138 | N34: 51 | O34: =N34*0.3048 -> 15.5448 | P34: =D34/O34 -> 2.69916898 | R34: =24/A34 -> 3.356643357 | S34: 103.3566434 | T34: =S34*0.3048 -> 31.5031049 | U34: =T34/D34 -> 0.750824
A35: 10.125 | B35: 11.11111111 | C35: 31.20248889 | D35: 29.62962963 | E35: 1.053084 | F35: 0.053084 | G35: 1.053084 | H35: 0.2388939583 | I35: =L33/A35 -> 26.66666667 | J35: 13.33333333 | K35: 6.370505554 | N35: 37 | O35: 11.2776 | P35: 2.627299215 | R35: 2.37037037 | S35: 102.3703704 | T35: 31.20248889 | U35: 1.053084
A36: 14.175 | B36: 7.936507937 | C36: 30.99606349 | D36: 21.16402116 | E36: 1.464564 | F36: 0.464564 | G36: 1.464564 | H36: 0.05826381575 | I36: =L33/A36 -> 19.04761905 | J36: 9.523809524 | K36: 1.109786967 | N36: 26 | O36: 7.9248 | P36: 2.670606345 | R36: 1.693121693 | S36: 101.6931217 | T36: 30.99606349 | U36: 1.464564
A37: 18.14 | B37: 6.201764057 | C37: 30.88326351 | D37: 16.53803749 | E37: 1.867408 | F37: 0.867408 | G37: 0.867408 | H37: 0.278633889 | I37: =L33/A37 -> 14.88423374 | J37: 7.442116869 | K37: 4.147251931 | N37: 20 | O37: 6.096 | P37: 2.712932659 | R37: 1.323042999 | S37: 101.323043 | T37: 30.88326351 | U37: 1.867408
A38: 21.225 | B38: 5.300353357 | C38: 30.82465018 | D38: 14.13427562 | E38: 2.180844 | F38: 0.180844 | G38: 1.180844 | H38: 0.2095956675 | I38: =L33/A38 -> 12.72084806 | J38: 6.360424028 | K38: 2.66623464 | N38: 17 | O38: 5.1816 | P38: 2.727782079 | R38: 1.130742049 | S38: 101.130742 | T38: 30.82465018 | U38: 2.180844
A39: 24.95 | B39: 4.509018036 | C39: 30.77319439 | D39: 12.0240481 | E39: 2.559304 | F39: 0.559304 | G39: 0.559304 | H39: 0.4141635245 | I39: =L33/A39 -> 10.82164329 | J39: 5.410821643 | K39: 4.481929924 | N39: 15 | O39: 4.572 | P39: 2.62993178 | R39: 0.9619238477 | S39: 100.9619238 | T39: 30.77319439 | U39: 2.559304
A40: 28.4 | B40: 3.961267606 | C40: 30.73757746 | D40: 10.56338028 | E40: =C40/D40 -> 2.909824 | F40: 0.909824 | G40: 0.909824 | H40: 0.2690797393 | I40: =L33/A40 -> 9.507042254 | J40: 4.753521127 | K40: 2.558152451 | N40: 13 | O40: 3.9624 | P40: 2.665904573 | R40: 0.8450704225 | S40: 100.8450704 | T40: 30.73757746 | U40: 2.909824
E41: Len | F41: Phase | J41: dl | K41: l0
D42: Оптимальная длина симметричной линии менее 45 метров, в метрах | O42: Hlen - длина диполя
A43: 1 | B43: =CONCATENATE(INT(D33+0.45),"м") -> 80м | C43: =IF(($E$2<B33), 46, K33) -> 8.388986281 | D43: =IF((C43+$J$33)>46, C43, C43+$J$33) -> 44.38898628 | E43: 44.38898628 | F43: 44.38898628 | G43: 44.38898628 | H43: 44.38898628 | I43: 44.38898628 | J43: 44.38898628 | K43: 44.38898628 | L43: 44.38898628 | O43: KU - коэфициент укорочения
A44: 2 | B44: 42м | C44: 11.69736138 | D44: =IF((C44+$J$34)>46, C44, C44+$J$34) -> 30.57848026 | E44: 30.57848026 | F44: 30.57848026 | G44: 30.57848026 | H44: 30.57848026 | I44: 30.57848026 | J44: 30.57848026 | K44: 30.57848026 | L44: 30.57848026 | O44: Freq - частота
A45: 3 | B45: 30м | C45: 6.370505554 | D45: =IF((C45+$J$35)>46, C45, C45+$J$35) -> 19.70383889 | E45: 33.03717222 | F45: 33.03717222 | G45: 33.03717222 | H45: 33.03717222 | I45: 33.03717222 | J45: 33.03717222 | K45: 33.03717222 | L45: 33.03717222 | O45: Len = ( Hlen + 7,3152 / Freq ) / ( 300 / Freq )
A46: 4 | B46: 21м | C46: 1.109786967 | D46: =IF((C46+$J$36)>46, C46, C46+$J$36) -> 10.63359649 | E46: 20.15740601 | F46: 29.68121554 | G46: 39.20502506 | H46: 39.20502506 | I46: 39.20502506 | J46: 39.20502506 | K46: 39.20502506 | L46: 39.20502506 | O46: Phase = Len - int(Len)
A47: 5 | B47: 16м | C47: 4.147251931 | D47: =IF((C47+$J$37)>46, C47, C47+$J$37) -> 11.5893688 | E47: 19.03148567 | F47: 26.47360254 | G47: 33.91571941 | H47: 41.35783628 | I47: 41.35783628 | J47: 41.35783628 | K47: 41.35783628 | L47: 41.35783628 | O47: IF ( Phase < 0.5 ) { Phase +=1 }
A48: 6 | B48: 14м | C48: 2.66623464 | D48: =IF((C48+$J$38)>46, C48, C48+$J$38) -> 9.026658668 | E48: 15.3870827 | F48: 21.74750672 | G48: 28.10793075 | H48: 34.46835478 | I48: 40.82877881 | J48: 40.82877881 | K48: 40.82877881 | L48: 40.82877881 | O48: Phase = 0,25 - ( TAN( 2,5 * ( Phase - 1 ) ) ) / 12,02
A49: 7 | B49: 12м | C49: 4.481929924 | D49: =IF((C49+$J$39)>46, C49, C49+$J$39) -> 9.892751568 | E49: 15.30357321 | F49: 20.71439485 | G49: 26.1252165 | H49: 31.53603814 | I49: 36.94685978 | J49: 42.35768143 | K49: 42.35768143 | L49: 42.35768143 | O49: dl = ( 300 * KU ) / ( 2 * Freq )
A50: 8 | B50: 11м | C50: 2.558152451 | D50: =IF((C50+$J$40)>46, C50, C50+$J$40) -> 7.311673577 | E50: =IF((D50+$J$40)>46, D50, D50+$J$40) -> 12.0651947 | F50: 16.81871583 | G50: 21.57223696 | H50: 26.32575808 | I50: 31.07927921 | J50: 35.83280034 | K50: 40.58632146 | L50: 45.33984259 | O50: l0 = Phase * ( 300 * KU ) / Freq
